bitfinex-derivatives/quotes_ETHF0:USTF0_20250712
["timestamp","ask_amount","ask_price","bid_price","bid_amount"]
[1752334078941,1.9654,2926.4,2926.3,0.68323]
[1752334079147,2.9282,2926.5,2926.4,1.6624]
[1752334079338,1.9654,2926.5,2926.4,1.6624]
[1752334079646,2.9282,2926.5,2926.4,1.6624]
[1752334080145,2.9282,2926.5,2926.1,1.9912]
[1752334080344,1.9654,2926.0,2925.9,3.89112]
[1752334080645,0.68337,2925.7,2925.6,3.2078]
[1752334080848,3.61157,2925.7,2925.6,3.2078]
[1752334081142,0.68346,2925.4,2925.3,3.2078]
[1752334081341,3.61166,2925.4,2925.3,3.2078]
[1752334081542,2.9282,2925.4,2925.3,4.87046]
[1752334081745,3.61164,2925.4,2925.3,4.87046]
[1752334081945,3.61164,2925.4,2925.3,4.187]
[1752334082244,3.61164,2925.4,2925.3,3.2078]
[1752334083047,2.9282,2925.4,2925.3,4.87046]
[1752334083249,3.61164,2925.4,2925.3,4.187]
[1752334083443,3.61164,2925.4,2925.3,3.2078]
[1752334084547,3.61174,2925.0,2924.9,3.2078]
[1752334084734,1.9654,2925.0,2924.9,4.87055]
[1752334084937,2.64888,2925.2,2925.1,0.9792]
[1752334085142,3.61173,2925.0,2924.9,3.2078]
[1752334085347,3.61173,2925.0,2924.9,3.89135]
[1752334085542,3.61173,2925.0,2924.9,3.2078]
[1752334085742,2.9282,2925.0,2924.9,3.89135]
[1752334085943,3.61173,2925.0,2924.9,3.89135]
[1752334086641,0.68355,2924.9,2924.8,0.68356]
[1752334086842,3.61175,2924.9,2924.8,1.66276]
[1752334087045,3.61177,2924.8,2924.7,0.68359]
[1752334087242,2.9282,2924.8,2924.7,0.68359]
[1752334087445,1.9654,2924.8,2924.7,1.66279]
[1752334087744,3.61177,2924.8,2924.7,1.66279]
[1752334088242,3.6118,2924.7,2924.6,3.2078]
[1752334088739,0.68369,2924.4,2924.2,9.1338]
[1752334088946,3.61189,2924.3,2924.2,10.79671]
[1752334089242,0.68368,2924.4,2924.3,0.68369]
[1752334089446,2.64908,2924.4,2924.3,1.66289]
[1752334089747,2.64908,2924.4,2924.3,0.9792]
[1752334089748,3.61188,2924.4,2924.3,0.9792]
[1752334090245,3.61188,2924.4,2924.3,1.66289]
[1752334090441,2.9282,2924.4,2924.3,1.66289]
[1752334090749,3.61187,2924.4,2924.3,0.9792]
[1752334090938,3.61187,2924.4,2924.3,1.66289]
[1752334092242,0.68369,2924.3,2924.2,3.2078]
[1752334092546,1.9654,2924.2,2924.1,1.66294]
[1752334092746,2.64911,2924.2,2924.1,1.66294]
[1752334092936,2.9282,2924.1,2924.0,1.66294]
[1752334093139,1.9654,2924.1,2924.0,1.66294]
[1752334093343,1.9654,2924.1,2924.0,3.58444]
[1752334093544,1.64648,2924.4,2924.3,0.68369]
[1752334093740,3.52918,2924.4,2924.3,0.68369]
[1752334093941,2.8455,2924.4,2924.3,0.68369]
[1752334094143,4.91672,2924.9,2924.7,1.66277]
[1752334094144,2.8455,2924.8,2924.7,1.66277]
[1752334094446,5.0905,2924.9,2924.8,0.68357]
[1752334094647,6.73685,2924.9,2924.8,1.66277]
[1752334094850,6.73685,2924.9,2924.8,0.68357]
[1752334095053,6.0533,2924.9,2924.5,0.9792]
[1752334095346,3.2078,2924.9,2924.8,0.68357]
[1752334095551,3.48805,2924.9,2924.8,1.62017]
[1752334095749,3.48807,2924.8,2924.7,0.68359]
[1752334095945,2.8045,2924.8,2924.5,0.9366]
[1752334096144,1.8827,2924.4,2924.2,0.9366]
[1752334096342,3.48819,2924.4,2924.3,0.68368]
[1752334096547,3.48819,2924.4,2924.2,0.9366]
[1752334096548,2.8045,2924.3,2924.2,1.6203]
[1752334096849,1.70908,2924.6,2924.2,0.6837]
[1752334097051,2.56641,2924.3,2924.2,0.6837]
[1752334097550,2.8045,2924.3,2924.2,1.6203]
[1752334097746,3.48819,2924.3,2924.2,1.6203]
[1752334098255,0.68371,2924.2,2924.1,0.68373]
[1752334098553,0.68368,2924.4,2924.3,0.68367]
[1752334098752,3.4882,2924.3,2924.2,0.68371]
[1752334099147,2.8045,2924.3,2924.2,0.68371]
[1752334099545,2.8045,2924.3,2924.2,1.62031]
[1752334100249,1.8827,2924.6,2924.5,1.62024]
[1752334100652,0.9218,2924.9,2924.8,1.62017]
[1752334100856,0.6835,2925.2,2925.1,0.68349]
[1752334101156,2.56622,2925.1,2925.0,0.68352]
[1752334101358,2.8045,2925.1,2925.0,0.68352]
[1752334101550,3.488,2925.1,2925.0,0.68352]
[1752334102356,2.8045,2925.1,2925.0,0.68352]
[1752334102551,3.488,2925.1,2925.0,0.68352]
[1752334103158,0.68359,2924.8,2924.7,0.68357]
[1752334103457,2.8045,2924.8,2924.7,0.68357]
[1752334103651,3.48807,2924.8,2924.7,0.68357]
[1752334103959,3.48812,2924.6,2924.5,3.89142]
[1752334104146,2.8045,2924.9,2924.8,0.68357]
[1752334104545,2.8045,2924.9,2924.8,1.62017]
[1752334104750,3.2078,2925.3,2925.2,1.62008]
[1752334104946,2.56614,2925.4,2925.3,0.68343]
[1752334105152,1.8827,2925.4,2925.3,0.68343]
[1752334105352,2.8045,2925.4,2925.3,0.68343]
[1752334105551,2.8045,2925.4,2925.3,1.62003]
[1752334105857,1.8827,2925.6,2925.5,1.62001]
[1752334106048,3.2078,2926.0,2925.7,2.8512]
[1752334106254,3.2078,2926.0,2925.4,1.70855]
[1752334106255,3.2078,2926.0,2925.9,3.53452]
[1752334106452,5.0905,2926.0,2925.9,1.61992]
[1752334106951,3.2078,2926.0,2925.9,1.61992]
[1752334107157,3.48775,2926.2,2926.1,1.61985]
[1752334107354,3.48775,2926.2,2926.1,1.61987]
[1752334107554,3.48775,2926.2,2926.1,0.9366]
[1752334107754,2.8045,2926.2,2926.1,1.61987]
[1752334108455,1.8827,2926.4,2926.3,1.61982]
[1752334108660,0.68323,2926.3,2926.1,0.68327]
[1752334108961,2.8045,2926.1,2926.0,0.9366]
[1752334109156,1.8827,2926.3,2925.8,7.63433]
[1752334109354,1.8827,2926.3,2926.2,0.68325]
[1752334109555,2.56592,2926.3,2926.2,0.9366]
[1752334109765,2.56592,2926.3,2926.1,0.68326]
[1752334109766,0.68322,2926.3,2926.1,0.68326]
[1752334109963,2.8045,2926.2,2926.1,0.68326]
[1752334110261,1.8827,2926.2,2926.1,1.61986]
[1752334110858,3.48775,2926.2,2926.1,0.9366]
[1752334111059,1.8827,2926.2,2926.1,1.61987]
[1752334111556,2.8045,2926.2,2926.1,1.61987]
[1752334112154,3.2078,2926.4,2926.3,0.68322]
[1752334112352,1.8827,2926.6,2926.3,0.9366]
[1752334112549,0.68316,2926.6,2926.5,0.68316]
[1752334112754,1.8827,2926.6,2926.5,1.61976]
[1752334112961,1.8827,2926.6,2926.5,3.53436]
[1752334113159,53.3646,2927.0,2926.9,0.68308]
[1752334113355,6.88345168,2927.0,2926.9,1.61968]
[1752334113554,7.56651168,2927.0,2926.9,0.68308]
[1752334113761,2.8045,2927.0,2926.9,1.61968]
[1752334113956,3.2078,2927.3,2927.2,1.61961]
[1752334114273,6.69529,2927.3,2927.2,0.68301]
[1752334114559,5.0905,2927.3,2927.2,1.61961]
[1752334114757,6.0123,2927.3,2927.2,1.61961]
[1752334115862,6.69529,2927.3,2927.2,0.9366]
[1752334116062,6.0123,2927.3,2927.2,1.61961]
[1752334116254,3.2078,2927.3,2927.2,3.53421]
[1752334117762,5.0905,2927.6,2927.5,1.61954]
[1752334117963,3.85887,2927.4,2927.3,2.81908]
[1752334118160,1.8827,2927.4,2927.3,2.81908]
[1752334118361,5.0905,2927.6,2927.5,2.81904]
[1752334118568,5.0905,2927.6,2927.5,4.73364]
[1752334118763,5.77342,2927.6,2927.5,4.73364]
[1752334119266,7.98842,2927.6,2927.5,2.1361]
[1752334119470,7.98842,2927.6,2927.5,2.81904]
[1752334119761,1.2932,2927.3,2926.8,11.0484]
[1752334120062,1.8827,2927.0,2926.7,0.68311]
[1752334120258,3.48763,2926.8,2926.7,0.68311]
[1752334120461,2.56588,2926.5,2926.4,3.2078]
[1752334120661,2.8045,2926.5,2926.4,3.2078]
[1752334120966,3.48768,2926.5,2926.4,4.8276]
[1752334121167,2.56588,2926.5,2926.4,4.1444]
[1752334121557,0.68308,2926.9,2926.4,4.91576]
[1752334121765,2.56578,2926.9,2926.8,0.68309]
[1752334121966,1.8827,2926.9,2926.8,3.53429]
[1752334122162,2.8045,2927.4,2927.0,2.8512]
[1752334122366,0.683,2927.3,2927.2,0.683]
[1752334122565,2.8045,2927.4,2927.0,1.9146]
[1752334122859,3.2078,2927.5,2927.2,2.8512]
[1752334123067,3.2078,2927.5,2927.4,1.61957]
[1752334123267,3.2078,2927.5,2927.4,3.47247]
[1752334123672,2.8392,2928.0,2927.7,1.61949]
[1752334123970,0.9218,2927.9,2927.6,1.61951]
[1752334124170,3.52212,2927.7,2927.6,0.9366]
[1752334124362,1.9174,2927.7,2927.6,1.61952]
[1752334124769,1.9174,2927.7,2927.6,3.47242]
[1752334125267,1.9174,2928.3,2928.2,0.68278]
[1752334125569,2.8966,2928.3,2928.2,1.61908]
[1752334125869,2.8966,2928.3,2928.0,1.8529]
[1752334125870,5.1252,2928.4,2928.3,1.61906]
[1752334126062,6.1044,2928.4,2928.3,0.68276]
[1752334126668,3.2078,2928.4,2928.3,3.47196]
[1752334126867,2.8966,2928.6,2928.5,1.619]
[1752334127464,1.9174,2928.2,2928.0,0.9363]
[1752334127674,2.8966,2928.1,2928.0,1.61913]
[1752334127874,1.9174,2928.1,2928.0,1.61913]
[1752334128074,1.9174,2928.4,2928.3,0.68273]
[1752334128269,0.68272,2928.5,2928.3,1.61903]
[1752334128472,3.2078,2928.6,2928.3,1.8529]
[1752334128771,2.8966,2928.5,2928.4,1.61903]
[1752334128974,3.57931,2928.5,2927.9,4.21583635]
[1752334129175,3.57931,2928.5,2928.4,0.68273]
[1752334129583,3.57931,2928.5,2928.4,1.61903]
[1752334129881,2.8966,2928.5,2928.4,1.61903]
[1752334130082,3.2078,2928.6,2928.2,1.61906]
[1752334130382,2.8966,2928.2,2928.1,1.61908]
[1752334131082,1.9174,2927.7,2927.6,0.9363]
[1752334131271,3.57952,2927.6,2927.5,3.2078]
[1752334131475,3.57952,2927.6,2927.5,3.89074]
[1752334131875,3.57952,2927.6,2927.5,4.82704]
[1752334132377,3.57952,2927.6,2927.5,3.2078]
[1752334132579,3.57957,2927.4,2927.3,0.68298]
[1752334132785,0.68298,2927.4,2927.3,0.68298]
[1752334133090,3.57958,2927.4,2927.3,0.68298]
[1752334133379,3.57961,2927.3,2927.2,0.68301]
[1752334133585,2.8966,2927.3,2927.2,1.61931]
[1752334134471,1.9174,2927.3,2927.2,1.61931]
[1752334134685,5.1252,2927.8,2927.7,0.6829]
[1752334134979,6.1044,2927.8,2927.7,0.6829]
[1752334135679,3.57942,2928.1,2928.0,0.68282]
[1752334136077,2.8966,2928.1,2928.0,1.61912]
[1752334136675,1.9174,2928.1,2928.0,1.61912]
[1752334136981,2.8966,2928.4,2928.3,0.68276]
[1752334137188,2.8966,2928.4,2928.3,1.61906]
[1752334138583,3.2078,2928.9,2928.6,0.68269]
[1752334138584,2.8966,2928.7,2928.6,0.68269]
[1752334138778,2.8966,2928.7,2928.6,1.61899]
[1752334139082,2.8966,2928.7,2928.6,0.68269]
[1752334139787,3.2078,2928.9,2928.2,2.64323]
[1752334139788,0.68272,2928.5,2928.4,0.68271]
[1752334140083,2.8966,2928.7,2928.6,0.68269]
[1752334140485,3.57926,2928.7,2928.6,0.68269]
[1752334140688,2.8966,2928.7,2928.6,0.68269]
[1752334140986,2.8966,2928.7,2928.6,1.61899]
[1752334141583,2.8966,2928.7,2928.6,0.68269]
[1752334142481,2.8966,2928.7,2928.6,1.61899]
[1752334142881,1.9174,2928.7,2928.6,1.61899]
[1752334143083,1.9174,2928.7,2928.6,3.47189]
[1752334143683,0.9792,2929.2,2929.1,0.68257]
[1752334143885,2.8966,2929.1,2928.8,4.1441]
[1752334144076,2.8966,2929.1,2929.0,0.6826]
[1752334144278,3.76902607,2929.1,2929.0,0.6826]
[1752334144585,4.45159607,2929.1,2929.0,0.6826]
[1752334144778,1.9174,2929.0,2928.4,7.70384]
[1752334144988,2.8966,2928.5,2928.4,3.2078]
[1752334145385,3.57931,2928.5,2928.4,0.68272]
[1752334146285,2.60015,2928.4,2928.3,0.68274]
[1752334146585,3.57935,2928.4,2928.3,0.68274]
[1752334146781,0.68277,2928.3,2928.2,0.68277]
[1752334146986,0.9792,2928.2,2927.7,3.2078]
[1752334147181,3.57948,2927.8,2927.7,3.2078]
[1752334147486,3.57948,2927.8,2927.7,3.8907]
[1752334147684,2.8966,2927.8,2927.7,3.8907]
[1752334147882,2.8966,2927.9,2927.3,3.2078]
[1752334148085,3.57957,2927.4,2927.3,3.2078]
[1752334149185,2.8966,2927.4,2927.3,3.2078]
[1752334149385,3.57957,2927.4,2927.3,3.2078]
[1752334149686,3.57957,2927.4,2927.0,0.9363]
[1752334149687,3.57964,2927.1,2927.0,3.89086]
[1752334149887,2.8966,2927.1,2927.0,3.89086]
[1752334150086,3.57964,2927.1,2927.0,3.89086]
[1752334150290,2.8966,2927.1,2927.0,3.89086]
[1752334151280,2.8966,2927.1,2927.0,4.82716]
[1752334152491,3.57966,2927.0,2926.9,0.68307]
[1752334152793,2.8966,2927.0,2926.9,1.61937]
[1752334152993,0.68309,2926.9,2926.8,0.68309]
[1752334153290,0.68309,2926.9,2926.7,3.2078]
[1752334153291,3.50398,2927.0,2926.9,0.68308]
[1752334153587,2.8209,2926.9,2926.7,3.2078]
[1752334153892,3.50397,2927.0,2926.9,0.68308]
[1752334154086,0.68312,2926.8,2926.7,0.68312]
[1752334154389,0.68303,2927.2,2927.1,0.68303]
[1752334154586,0.68303,2927.2,2926.8,4.42958]
[1752334154587,2.8209,2927.2,2926.8,0.9363]
[1752334154793,2.52476,2927.1,2927.0,0.68305]
[1752334154990,2.8209,2927.1,2927.0,0.68305]
[1752334155188,2.8209,2927.4,2927.3,1.61929]
[1752334155391,2.8209,2927.4,2927.3,0.68299]
[1752334155591,4.0146,2927.4,2927.3,0.68299]
[1752334156683,5.3772,2927.6,2927.5,0.68294]
[1752334156888,2.85236,2927.5,2927.4,0.68295]
[1752334157088,4.0111,2927.5,2927.4,0.68295]
[1752334157895,5.56789644,2927.5,2927.4,0.68295]
[1752334158300,4.69404,2927.5,2927.4,0.68295]
[1752334158690,5.56799755,2927.5,2927.4,0.68295]
[1752334158996,4.88505755,2927.5,2927.4,0.68295]
[1752334159291,4.69404,2927.5,2927.4,0.68295]
[1752334159490,3.71842,2927.3,2927.2,0.683]
[1752334159690,4.69412,2927.3,2927.2,0.683]
[1752334159892,4.0111,2927.3,2927.2,0.683]
[1752334160497,4.0111,2927.3,2927.2,2.8558]
[1752334161601,4.0111,2927.5,2927.4,1.1801]
[1752334161896,4.0111,2927.5,2927.4,1.86307]
[1752334162598,4.0111,2927.5,2927.4,2.85577]
[1752334162795,4.69404,2927.5,2927.4,0.68297]
[1752334163497,3.7184,2927.4,2927.3,0.68298]
[1752334163700,4.69414,2927.2,2927.1,0.68302]
[1752334164091,1.87676,2927.1,2927.0,0.68304]
[1752334164296,4.0111,2927.1,2927.0,0.68304]
[1752334165195,4.0111,2927.1,2927.0,1.86314]
[1752334165396,4.0111,2927.1,2927.0,2.85584]
[1752334166400,1.8417,2927.4,2927.3,0.9927]
[1752334166595,4.4015,2927.9,2927.8,1.86298]
[1752334166899,1.1937,2927.9,2927.8,4.62118]
[1752334167101,6.2432,2928.2,2928.1,2.8556]
[1752334167298,7.11860703,2928.2,2928.1,2.8556]
[1752334167501,8.09430703,2928.2,2928.1,2.8556]
[1752334167697,7.90168,2928.2,2928.1,2.8556]
[1752334168001,7.90168,2928.2,2928.1,1.8629]
[1752334168300,7.90168,2928.2,2928.1,0.6828]
[1752334168801,2.8174,2927.8,2927.6,0.9927]
[1752334169000,4.0111,2928.0,2927.9,2.85565]
[1752334169305,3.0354,2928.0,2927.9,4.62115]
[1752334169801,4.0111,2928.0,2927.9,2.85565]
[1752334169994,4.0111,2928.0,2927.9,0.68285]
[1752334170199,3.0354,2928.0,2927.9,4.62115]
[1752334172699,3.0354,2928.0,2927.9,2.85565]
[1752334173603,3.0354,2928.0,2927.9,4.62115]
[1752334174705,1.8417,2928.0,2927.9,4.62115]
[1752334174906,7.2189,2928.2,2928.1,1.8629]
[1752334175103,1.8417,2928.5,2928.4,1.86284]
[1752334175300,5.3772,2928.9,2928.8,2.85544]
[1752334175500,6.25445224,2928.9,2928.8,2.85544]
[1752334175697,5.27875224,2928.9,2928.8,2.85544]
[1752334175896,0.87725224,2928.9,2928.8,4.62094]
[1752334176901,3.91265224,2928.9,2928.8,4.62094]
[1752334177101,0.87725224,2928.9,2928.8,4.62094]
[1752334178409,4.88835224,2928.9,2928.8,2.85544]
[1752334179308,4.0111,2928.9,2928.8,2.85544]
[1752334179698,4.0111,2928.9,2928.8,0.68264]
[1752334179900,4.01568546,2928.9,2928.8,0.68264]
[1752334180612,4.69830546,2928.9,2928.8,0.68264]
[1752334181011,4.01568546,2928.9,2928.8,0.68264]
[1752334182104,4.69830546,2928.9,2928.8,0.68264]
[1752334183009,1.19828546,2928.9,2928.6,3.2078]
[1752334183209,1.1937,2928.2,2928.1,1.86291]
[1752334183417,4.0557,2928.2,2928.1,1.86291]
[1752334183608,4.0557,2928.2,2928.1,0.68281]
[1752334184313,4.0557,2928.2,2928.1,1.86291]
[1752334184508,4.73848,2928.2,2928.1,0.68281]
[1752334184710,4.0557,2928.2,2928.1,0.68281]
[1752334184909,4.0557,2928.2,2928.1,1.90991]
[1752334185209,4.73848,2928.2,2928.1,1.90991]
[1752334185610,4.0557,2928.2,2928.1,1.90991]
[1752334185810,4.73848,2928.2,2928.1,0.68281]
[1752334186309,4.0557,2928.2,2928.1,0.68281]
[1752334186508,4.73848,2928.2,2928.1,0.68281]
[1752334186908,4.0557,2928.2,2928.1,0.68281]
[1752334187514,4.73848,2928.2,2928.1,0.68281]
[1752334187908,4.73848,2928.2,2928.0,3.89061]
[1752334187909,0.68281,2928.1,2928.0,3.89061]
[1752334188110,4.70301,2928.1,2928.0,3.89061]
[1752334188308,4.0202,2928.1,2928.0,3.89061]
[1752334188510,4.70301,2928.1,2928.0,3.89061]
[1752334190207,4.0202,2928.1,2928.0,3.89061]
[1752334190412,4.70301,2928.1,2928.0,3.89061]
[1752334191716,1.1432,2927.8,2927.7,3.2078]
[1752334192019,4.7031,2927.7,2927.6,0.68291]
[1752334192414,1.70712,2928.0,2927.5,0.918]
[1752334192415,2.81682,2927.6,2927.5,2.82803]
[1752334192614,4.70312,2927.6,2927.5,1.91003]
[1752334192824,4.70314,2927.5,2927.4,0.68295]
[1752334193520,4.0202,2927.5,2927.4,2.82805]
[1752334193722,4.70314,2927.5,2927.4,2.82805]
[1752334194119,4.0202,2927.5,2927.4,2.82805]
[1752334194519,4.70314,2927.5,2927.4,1.91005]
[1752334195227,4.0202,2927.5,2927.4,1.91005]
[1752334195423,4.0202,2927.5,2927.4,2.82805]
[1752334195618,4.70314,2927.5,2927.4,2.82805]
[1752334196222,4.70314,2927.5,2927.4,1.91005]
[1752334196622,1.82619,2927.4,2927.3,0.68298]
[1752334196822,4.70319,2927.4,2927.3,0.68298]
[1752334197017,1.82624,2927.2,2927.1,1.91014]
[1752334197223,4.70324,2927.2,2927.1,1.91014]
[1752334197618,1.82624,2927.2,2927.1,0.68304]
[1752334197824,4.70324,2927.2,2927.1,0.68304]
[1752334198226,2.81694,2927.1,2927.0,5.11794]
[1752334198425,4.70324,2927.1,2927.0,6.03594]
[1752334199528,4.70324,2927.1,2927.0,5.11794]
[1752334199921,4.0202,2927.1,2927.0,6.03594]
[1752334200921,4.0202,2927.1,2927.0,7.75524]
[1752334201222,4.0202,2927.5,2927.4,1.91004]
[1752334201427,4.70317,2927.5,2927.4,2.82804]
[1752334202026,4.70317,2927.5,2927.4,1.91004]
[1752334202324,3.2078,2928.0,2927.5,1.70736]
[1752334202521,1.70676,2928.6,2928.0,2.82793]
[1752334202522,1.8863,2928.1,2928.0,2.82793]
[1752334202717,3.90373835,2928.1,2928.0,2.82793]
[1752334203025,3.71237,2927.8,2927.7,3.2078]
[1752334203320,1.70707,2928.1,2927.4,0.68296]
[1752334203321,4.0202,2927.5,2927.4,0.68296]
[1752334203523,1.70717,2927.9,2927.1,4.80883]
[1752334203524,1.1432,2927.2,2927.1,4.80883]
[1752334203727,4.0202,2927.2,2927.1,4.80883]
[1752334204224,4.0202,2927.2,2927.1,6.03593]
[1752334204424,3.0295,2927.5,2927.4,1.2271]
[1752334204628,4.70315,2927.5,2927.4,2.82807]
[1752334204837,4.70317,2927.4,2927.3,0.68298]
[1752334205327,1.82621,2927.3,2927.2,0.683]
[1752334205632,4.0202,2927.3,2927.2,2.8281]
[1752334207029,4.70319,2927.3,2927.2,2.8281]
[1752334207326,4.0202,2927.2,2927.1,5.11793]
[1752334207523,7.228,2927.7,2927.6,0.68292]
[1752334207730,7.228,2927.7,2927.6,2.82802]
[1752334208029,1.8863,2927.7,2927.6,4.54732]
[1752334208331,4.0202,2928.0,2927.9,1.90995]
[1752334208536,4.0202,2928.0,2927.9,2.82795]
[1752334209029,3.0295,2928.0,2927.9,2.82795]
[1752334209222,3.0295,2928.0,2927.9,4.54725]
[1752334209427,4.70303,2928.0,2927.9,2.82795]
[1752334209728,3.0295,2927.7,2927.6,4.54732]
[1752334209923,3.0295,2928.1,2928.0,2.82793]
[1752334210328,2.1339,2928.4,2928.3,1.90986]
[1752334210531,4.0202,2928.4,2928.3,1.90986]
[1752334210823,4.0202,2928.4,2928.3,2.82786]
[1752334211428,4.70294,2928.4,2928.3,2.82786]
[1752334211628,4.0202,2928.4,2928.3,2.82786]
[1752334211835,4.0202,2928.4,2928.3,0.68276]
[1752334212132,4.70294,2928.4,2928.3,0.68276]
[1752334212439,4.70297,2928.3,2928.2,0.68277]
[1752334212734,3.2078,2928.6,2928.0,0.918]
[1752334212735,4.703,2928.2,2928.1,0.68279]
[1752334213031,4.0202,2928.2,2928.1,1.90989]
[1752334213232,3.8346,2928.5,2928.4,1.90983]
[1752334213438,4.51731,2928.5,2928.4,2.82783]
[1752334213937,3.8346,2928.5,2928.4,2.82783]
[1752334214834,2.8439,2928.5,2928.4,2.82783]
[1752334215437,4.49721,2928.5,2928.4,2.82783]
[1752334215835,4.49721,2928.5,2928.4,1.90983]
[1752334216041,3.8145,2928.5,2928.4,1.90983]
[1752334216335,3.8145,2928.5,2928.4,2.85453]
[1752334217839,3.8145,2928.5,2928.4,1.90983]
[1752334218637,4.49721,2928.5,2928.4,1.90983]
[1752334218938,3.8145,2928.5,2928.4,0.68273]
[1752334219734,4.49721,2928.5,2928.4,0.68273]
[1752334220238,3.8145,2928.5,2928.4,0.68273]
[1752334220737,3.8145,2928.5,2928.4,2.75903]
[1752334221735,2.8439,2928.5,2928.4,4.41323]
[1752334222142,1.12588546,2928.9,2928.8,1.81424]
[1752334222440,3.79718546,2928.9,2928.8,2.75894]
[1752334223744,0.00458546,2928.9,2928.8,7.62094]
[1752334224541,2.822,2929.5,2929.4,3.7259]
[1752334224747,1.7007,2929.7,2929.6,1.81406]
[1752334225046,3.2078,2930.0,2929.7,0.68242]
[1752334225246,1.7007,2929.9,2929.8,4.40831]
[1752334225542,2.38307,2930.0,2929.9,2.75869]
[1752334225845,4.47493,2930.2,2930.1,2.0763]
[1752334226244,1.80359,2930.4,2930.3,1.1316]
[1752334226544,3.2078,2931.1,2930.4,1.1674]
[1752334226844,1.21326534,2931.6,2931.4,1.1674]
[1752334227042,2.38267,2931.7,2931.6,0.9447]
[1752334227643,3.2078,2931.7,2931.3,1.1471]
[1752334227844,2.38283,2931.0,2930.9,0.9447]
[1752334228148,2.38292,2930.6,2930.5,1.21623432]
[1752334228444,2.38292,2930.6,2930.5,0.9447]
[1752334228834,1.65285,2930.5,2930.4,3.2078]
[1752334229036,3.35355,2930.5,2930.4,3.2078]
[1752334229339,1.7007,2930.6,2930.1,3.2078]
[1752334229541,3.35362,2930.2,2930.1,3.2078]
[1752334229836,0.9706,2930.7,2930.1,4.1525]
[1752334230039,4.9085,2930.8,2930.5,1.1471]
[1752334230238,3.2078,2930.8,2930.6,2.19651048]
[1752334230446,0.68215,2930.9,2930.8,0.9447]
[1752334230644,23.998,2931.4,2930.8,4.3549]
[1752334230843,1.7007,2931.0,2930.9,0.9447]
[1752334231044,0.6821,2931.2,2931.1,0.9447]
[1752334231544,0.68205,2931.4,2931.2,1.1471]
[1752334231744,0.68205,2931.4,2931.3,0.9447]
[1752334232146,3.35335,2931.4,2931.3,0.9447]
[1752334232353,3.35335,2931.4,2931.1,3.2078]
[1752334232354,2.38283,2931.0,2930.9,0.9447]
[1752334232549,0.68215,2930.9,2930.8,3.2078]
[1752334232849,2.38296,2930.5,2930.4,4.1525]
[1752334233052,3.35356,2930.5,2930.4,3.2078]
[1752334233459,3.35356,2930.5,2930.4,4.1525]
[1752334234150,0.68232,2930.2,2930.1,0.9447]
[1752334234354,2.38302,2930.2,2930.1,0.9447]
[1752334234556,1.7007,2930.2,2930.1,1.62704]
[1752334234754,2.38302,2930.2,2930.1,0.9447]
[1752334235658,1.7007,2930.2,2930.1,1.62704]
[1752334235859,2.38302,2930.2,2930.1,0.9447]
[1752334236261,1.7007,2930.2,2930.1,1.62704]
[1752334236850,2.6713,2930.4,2930.2,1.627]
[1752334237057,2.6713,2930.4,2930.2,0.9447]
[1752334237257,2.6713,2930.7,2930.6,0.68222]
[1752334237453,0.68226,2930.5,2930.3,4.83479]
[1752334237654,2.6713,2930.4,2930.3,4.83479]
[1752334238259,1.7007,2930.4,2930.3,4.83479]
[1752334239558,3.35357,2930.4,2930.3,3.2078]
[1752334239765,2.6713,2930.0,2929.9,0.68238]
[1752334240356,1.7007,2930.4,2930.3,0.68229]
[1752334240656,1.7007,2930.4,2930.3,3.82350048]
[1752334240657,2.6713,2930.4,2930.3,3.82350048]
[1752334240859,0.9706,2931.1,2930.9,0.68214]
[1752334241057,0.9706,2931.1,2930.4,3.2078]
[1752334241058,0.68219,2930.8,2930.4,3.2078]
[1752334241260,2.6713,2930.9,2930.5,0.9447]
[1752334241464,0.68216,2930.9,2930.8,0.68216]
[1752334241761,1.7007,2930.9,2930.8,0.68216]
[1752334242164,2.6713,2930.9,2930.8,0.68216]
[1752334242661,3.35348,2930.8,2930.7,0.68219]
[1752334242865,2.6713,2930.8,2930.7,0.68219]
[1752334243659,2.6713,2930.8,2930.7,1.62689]
[1752334244969,2.6713,2930.8,2930.7,0.68219]
[1752334245665,2.6713,2930.8,2930.7,1.68269]
[1752334246966,2.6713,2930.8,2930.7,0.68219]
[1752334247468,2.6713,2930.8,2930.7,1.68269]
[1752334247963,2.6713,2930.8,2930.7,2.87089]
[1752334248166,0.9991,2931.1,2931.0,1.68263]
[1752334248368,3.8415,2931.1,2931.0,2.87083]
[1752334248562,1.6884,2931.1,2931.0,3.98603]
[1752334248859,3.2078,2931.5,2930.8,3.2078]
[1752334248860,1.6884,2931.3,2931.2,1.1882]
[1752334249063,3.8415,2931.3,2931.2,1.1882]
[1752334249269,3.8415,2931.3,2931.2,1.87028]
[1752334249664,4.52356,2931.3,2931.2,1.87028]
[1752334249870,4.52356,2931.3,2930.8,0.68218]
[1752334249871,2.8424,2930.9,2930.8,0.68218]
[1752334250067,3.8415,2930.9,2930.8,1.87038]
[1752334250369,3.8415,2930.9,2930.8,2.87088]
[1752334250772,1.83609,2931.2,2931.1,1.87031]
[1752334250968,4.52358,2931.2,2931.1,1.87031]
[1752334251471,0.68219,2930.8,2930.7,0.68218]
[1752334251668,1.154,2930.8,2930.7,0.68218]
[1752334251870,1.154,2930.7,2930.6,0.68221]